[Event "Mistrovství Čech mládeže 2023 - HD14"]
[Site "Harrachov, Czech Republic"]
[Date "2023.10.21"]
[Round "1.6"]
[White "Jančík, Vojtěch"]
[Black "Švadlenka, Dominik"]
[Result "0-1"]
[TimeControl "90m + 30s"]
[WhiteElo "1219"]
[BlackElo "1710"]

1. e4 {[%clk 01:30:57]} {[%emt 00:00:02]} c6 {[%clk 01:30:55]} {[%emt
00:00:05]} 2. d4 {[%clk 01:30:48]} {[%emt 00:00:38]} d5 {[%clk 01:31:19]}
{[%emt 00:00:06]} 3. e5 {[%clk 01:30:34]} {[%emt 00:00:45]} c5 {[%clk
01:31:45]} {[%emt 00:00:04]} 4. c3 {[%clk 01:29:42]} {[%emt 00:01:22]} Nc6
{[%clk 01:32:09]} {[%emt 00:00:06]} 5. Nf3 {[%clk 01:29:15]} {[%emt 00:00:57]}
Bg4 {[%clk 01:32:31]} {[%emt 00:00:07]} 6. Be2 {[%clk 01:28:36]} {[%emt
00:01:09]} e6 {[%clk 01:32:48]} {[%emt 00:00:13]} 7. O-O {[%clk 01:27:42]}
{[%emt 00:01:24]} Nge7 {[%clk 01:32:19]} {[%emt 00:00:59]} 8. h3 {[%clk
01:27:27]} {[%emt 00:00:44]} Bxf3 {[%clk 01:32:29]} {[%emt 00:00:20]} 9. Bxf3
{[%clk 01:27:50]} {[%emt 00:00:08]} cxd4 {[%clk 01:31:54]} {[%emt 00:01:05]} 10.
cxd4 {[%clk 01:25:40]} {[%emt 00:02:39]} Qb6 {[%clk 01:31:02]} {[%emt
00:01:22]} 11. Nc3 {[%clk 01:17:14]} {[%emt 00:08:56]} Nxd4 {[%clk 01:29:03]}
{[%emt 00:02:28]} 12. Bg4 {[%clk 01:15:42]} {[%emt 00:02:02]} Ndc6 {[%clk
01:28:11]} {[%emt 00:01:23]} 13. Re1 {[%clk 01:14:14]} {[%emt 00:01:57]} Ng6
{[%clk 01:27:43]} {[%emt 00:00:58]} 14. Qa4 {[%clk 01:13:04]} {[%emt 00:01:39]}
Bc5 {[%clk 01:27:04]} {[%emt 00:01:09]} 15. Re2 {[%clk 01:12:09]} {[%emt
00:01:26]} O-O {[%clk 01:26:51]} {[%emt 00:00:42]} 16. Qc2 {[%clk 01:09:38]}
{[%emt 00:03:00]} Nd4 {[%clk 01:26:11]} {[%emt 00:01:10]} 17. Qd3 {[%clk
01:06:40]} {[%emt 00:03:28]} Nxe2+ {[%clk 01:26:30]} {[%emt 00:00:12]} 18. Qxe2
{[%clk 01:06:15]} {[%emt 00:00:55]} Qa6 {[%clk 01:25:58]} {[%emt 00:01:01]} 19.
Qc2 {[%clk 01:05:25]} {[%emt 00:01:20]} Nxe5 {[%clk 01:25:06]} {[%emt
00:01:23]} 20. Nxd5 {[%clk 01:04:09]} {[%emt 00:01:46]} Bxf2+ {[%clk 01:24:46]}
{[%emt 00:00:50]} 21. Kxf2 {[%clk 01:04:13]} {[%emt 00:00:25]} Nxg4+ {[%clk
01:24:56]} {[%emt 00:00:21]} 22. hxg4 {[%clk 01:04:33]} {[%emt 00:00:09]} exd5
{[%clk 01:25:17]} {[%emt 00:00:11]} 23. Be3 {[%clk 01:01:27]} {[%emt 00:03:36]}
Rac8 {[%clk 01:25:17]} {[%emt 00:00:30]} 24. Qd2 {[%clk 00:59:58]} {[%emt
00:01:59]} h6 {[%clk 01:24:58]} {[%emt 00:00:49]} 25. Rh1 {[%clk 00:59:16]}
{[%emt 00:01:12]} Qg6 {[%clk 01:23:36]} {[%emt 00:01:53]} 26. Kg3 {[%clk
00:56:53]} {[%emt 00:02:52]} Rc4 {[%clk 01:22:09]} {[%emt 00:01:56]} 27. Bf4
{[%clk 00:55:18]} {[%emt 00:02:05]} d4 {[%clk 01:20:36]} {[%emt 00:02:03]} 28.
Bxh6 {[%clk 00:52:41]} {[%emt 00:03:07]} gxh6 {[%clk 01:20:01]} {[%emt
00:01:05]} 29. Rxh6 {[%clk 00:52:45]} {[%emt 00:00:26]} Qg7 {[%clk 01:20:03]}
{[%emt 00:00:28]} 30. Rh5 {[%clk 00:53:05]} {[%emt 00:00:09]} Rc6 {[%clk
01:20:09]} {[%emt 00:00:24]} 31. Kh3 {[%clk 00:52:09]} {[%emt 00:01:25]} Rg6
{[%clk 01:20:03]} {[%emt 00:00:36]} 32. Rh4 {[%clk 00:52:17]} {[%emt 00:00:22]}
Qe5 {[%clk 01:19:57]} {[%emt 00:00:36]} 33. g3 {[%clk 00:51:54]} {[%emt
00:00:53]} Qe3 {[%clk 01:19:58]} {[%emt 00:00:30]} 34. Qa5 {[%clk 00:52:10]}
{[%emt 00:00:15]} Qg1 {[%clk 01:19:12]} {[%emt 00:01:15]} 35. g5 {[%clk
00:52:22]} {[%emt 00:00:18]} Qh1+ {[%clk 01:18:49]} {[%emt 00:00:53]} 36. Kg4
{[%clk 00:52:47]} {[%emt 00:00:06]} Qe4+ {[%clk 01:19:03]} {[%emt 00:00:16]} 37.
Kh3 {[%clk 00:52:46]} {[%emt 00:00:31]} Qe6+ {[%clk 01:18:14]} {[%emt
00:01:19]} 38. Kh2 {[%clk 00:53:06]} {[%emt 00:00:10]} Rc8 {[%clk 01:16:59]}
{[%emt 00:01:45]} 39. a3 {[%clk 00:51:42]} {[%emt 00:01:55]} Rc2+ {[%clk
01:16:55]} {[%emt 00:00:33]} 40. Kh1 {[%clk 00:52:06]} {[%emt 00:00:06]} Qc6+
{[%clk 01:17:18]} {[%emt 00:00:08]} 41. Kg1 {[%clk 00:52:11]} {[%emt 00:00:24]}
Qg2# {[%clk 01:17:42]} {[%emt 00:00:06]} 0-1

[Event "Mistrovství Čech mládeže 2023 - HD14"]
[Site "Harrachov, Czech Republic"]
[Date "2023.10.21"]
[Round "1.7"]
[White "Krautschneider, Daniel Jan"]
[Black "Brabcová, Nikola"]
[Result "1-0"]
[TimeControl "90m + 30s"]
[WhiteElo "1669"]
[BlackElo "1195"]

1. e4 {[%clk 01:30:49]} {[%emt 00:00:09]} e5 {[%clk 01:30:53]} {[%emt
00:00:07]} 2. f4 {[%clk 01:31:14]} {[%emt 00:00:06]} d5 {[%clk 01:31:10]}
{[%emt 00:00:14]} 3. exd5 {[%clk 01:31:25]} {[%emt 00:00:19]} Qxd5 {[%clk
01:31:11]} {[%emt 00:00:28]} 4. Nc3 {[%clk 01:31:49]} {[%emt 00:00:06]} Qe6
{[%clk 01:31:09]} {[%emt 00:00:33]} 5. fxe5 {[%clk 01:32:03]} {[%emt 00:00:17]}
Qxe5+ {[%clk 01:31:14]} {[%emt 00:00:23]} 6. Qe2 {[%clk 01:32:27]} {[%emt
00:00:07]} Qe6 {[%clk 01:30:16]} {[%emt 00:01:28]} 7. Nf3 {[%clk 01:31:47]}
{[%emt 00:01:09]} Nc6 {[%clk 01:29:19]} {[%emt 00:01:28]} 8. d4 {[%clk
01:31:58]} {[%emt 00:00:19]} Bb4 {[%clk 01:29:04]} {[%emt 00:00:44]} 9. Bd2
{[%clk 01:31:34]} {[%emt 00:00:54]} Nge7 {[%clk 01:27:57]} {[%emt 00:01:36]} 10.
Nb5 {[%clk 01:17:57]} {[%emt 00:14:07]} Bxd2+ {[%clk 01:26:49]} {[%emt
00:01:39]} 11. Nxd2 {[%clk 01:16:43]} {[%emt 00:01:44]} Qd7 {[%clk 01:26:08]}
{[%emt 00:01:07]} 12. Nb3 {[%clk 01:14:50]} {[%emt 00:02:27]} a6 {[%clk
01:24:18]} {[%emt 00:02:20]} 13. d5 {[%clk 01:04:40]} {[%emt 00:10:40]} Nd8
{[%clk 01:19:54]} {[%emt 00:04:54]} 14. Nc3 {[%clk 01:04:21]} {[%emt 00:00:50]}
O-O {[%clk 01:18:15]} {[%emt 00:02:09]} 15. O-O-O {[%clk 01:04:24]} {[%emt
00:00:27]} Re8 {[%clk 01:17:53]} {[%emt 00:00:51]} 16. Qf2 {[%clk 01:04:13]}
{[%emt 00:00:41]} b5 {[%clk 01:16:26]} {[%emt 00:01:58]} 17. a3 {[%clk
01:02:20]} {[%emt 00:02:23]} c6 {[%clk 01:14:28]} {[%emt 00:02:25]} 18. d6
{[%emt 00:02:26]} Ng6 {[%clk 01:13:31]} {[%emt 00:00:57]} 19. Be2 {[%clk
00:59:42]} {[%emt 00:01:47]} Nb7 {[%clk 01:12:03]} {[%emt 00:01:57]} 20. Rhf1
{[%clk 00:59:09]} {[%emt 00:01:03]} f6 {[%clk 01:08:17]} {[%emt 00:04:16]} 21.
Qg3 {[%clk 00:57:44]} {[%emt 00:01:52]} Ne5 {[%clk 01:06:30]} {[%emt 00:02:18]}
22. Ne4 {[%clk 00:56:32]} {[%emt 00:01:44]} Kh8 {[%clk 01:05:01]} {[%emt
00:01:59]} 23. Bh5 {[%clk 00:53:27]} {[%emt 00:03:34]} Ng6 {[%clk 01:03:27]}
{[%emt 00:02:04]} 24. Bxg6 {[%clk 00:52:49]} {[%emt 00:01:09]} hxg6 {[%clk
01:03:29]} {[%emt 00:00:27]} 25. Qxg6 {[%clk 00:52:44]} {[%emt 00:00:35]} Rf8
{[%clk 01:00:34]} {[%emt 00:03:25]} 26. Ng5 {[%clk 00:52:19]} {[%emt 00:00:55]}
Kg8 {[%clk 00:56:52]} {[%emt 00:04:12]} 27. Qh7# {[%clk 00:52:26]} 1-0

[Event "Mistrovství Čech mládeže 2023 - HD14"]
[Site "Harrachov, Czech Republic"]
[Date "2023.10.21"]
[Round "1.8"]
[White "Archlebová, Iva"]
[Black "Bělaška, Václav"]
[Result "0-1"]
[TimeControl "90m + 30s"]
[WhiteElo "1176"]
[BlackElo "1666"]

1. e4 {[%clk 01:30:57]} {[%emt 00:00:03]} c5 {[%clk 01:30:57]} {[%emt
00:00:04]} 2. Nf3 {[%clk 01:31:03]} {[%emt 00:00:23]} d6 {[%clk 01:31:23]}
{[%emt 00:00:05]} 3. d4 {[%clk 01:30:03]} {[%emt 00:01:30]} cxd4 {[%clk
01:31:47]} {[%emt 00:00:06]} 4. Nxd4 {[%clk 01:29:48]} {[%emt 00:00:45]} Nf6
{[%clk 01:32:11]} {[%emt 00:00:05]} 5. Nc3 {[%clk 01:29:52]} {[%emt 00:00:26]}
a6 {[%clk 01:32:37]} {[%emt 00:00:05]} 6. Nf3 {[%clk 01:29:12]} {[%emt
00:01:10]} e6 {[%clk 01:32:42]} {[%emt 00:00:25]} 7. Bg5 {[%clk 01:28:50]}
{[%emt 00:00:46]} Be7 {[%clk 01:33:03]} {[%emt 00:00:14]} 8. Be2 {[%clk
01:26:59]} {[%emt 00:02:19]} b5 {[%clk 01:33:14]} {[%emt 00:00:22]} 9. a3
{[%clk 01:26:37]} {[%emt 00:00:52]} Bb7 {[%clk 01:33:31]} {[%emt 00:00:13]} 10.
Bxf6 {[%clk 01:25:15]} {[%emt 00:01:52]} Bxf6 {[%clk 01:33:46]} {[%emt
00:00:15]} 11. O-O {[%clk 01:24:35]} {[%emt 00:01:10]} O-O {[%clk 01:33:15]}
{[%emt 00:01:01]} 12. Qd2 {[%clk 01:22:54]} {[%emt 00:02:03]} Qc7 {[%clk
01:33:29]} {[%emt 00:00:24]} 13. Rfd1 {[%clk 01:20:06]} {[%emt 00:03:06]} Rd8
{[%clk 01:33:00]} {[%emt 00:01:11]} 14. Qe3 {[%clk 01:04:20]} {[%emt 00:16:05]}
Nd7 {[%clk 01:28:50]} {[%emt 00:04:53]} 15. Nd4 {[%clk 00:50:22]} {[%emt
00:14:19]} Nb6 {[%clk 01:26:28]} {[%emt 00:03:01]} 16. h3 {[%clk 00:40:03]}
{[%emt 00:10:48]} d5 {[%emt 00:19:32]} 17. Nf3 {[%emt 00:01:15]} Bxc3 {[%clk
01:21:50]} {[%emt 00:03:04]} 18. bxc3 {[%emt 00:05:50]} dxe4 {[%emt 00:04:43]}
19. Ng5 {[%emt 00:05:55]} h6 {[%emt 00:03:18]} 20. Nxe4 {[%emt 00:02:23]} Nc4
{[%emt 00:01:48]} 21. Bxc4 {[%emt 00:02:27]} Qxc4 {[%emt 00:02:34]} 22. Nd6
{[%emt 00:00:28]} Qc7 {[%emt 00:00:34]} 23. Nxb7 {[%emt 00:00:04]} Qxb7 {[%emt
00:00:55]} 24. Rxd8+ {[%emt 00:00:07]} Rxd8 {[%emt 00:01:10]} 25. Kf1 {[%emt
00:00:36]} Qc6 {[%emt 00:00:03]} 26. Qf3 {[%clk 00:07:51]} {[%emt 00:00:48]}
Qxf3 {[%emt 00:00:19]} 27. gxf3 {[%clk 00:08:08]} {[%emt 00:00:03]} Rc8 {[%clk
01:11:48]} {[%emt 00:00:09]} 28. Ke2 {[%clk 00:07:04]} {[%emt 00:01:34]} Rxc3
{[%clk 01:12:12]} {[%emt 00:00:06]} 29. Ra2 {[%clk 00:07:15]} {[%emt 00:00:18]}
Kf8 {[%clk 01:12:26]} {[%emt 00:00:16]} 30. a4 {[%clk 00:06:31]} {[%emt
00:01:14]} bxa4 {[%clk 01:12:40]} {[%emt 00:00:17]} 31. Rxa4 {[%clk 00:06:41]}
{[%emt 00:00:20]} Rxc2+ {[%clk 01:12:36]} {[%emt 00:00:33]} 32. Kf1 {[%clk
00:06:45]} {[%emt 00:00:24]} Rc6 {[%clk 01:13:02]} {[%emt 00:00:05]} 33. Ke2
{[%clk 00:06:57]} {[%emt 00:00:18]} Ke7 {[%clk 01:13:27]} {[%emt 00:00:06]} 34.
Ke3 {[%clk 00:06:58]} {[%emt 00:00:29]} Kd6 {[%clk 01:12:47]} {[%emt 00:01:10]}
35. Kd4 {[%clk 00:05:02]} {[%emt 00:02:24]} e5+ {[%clk 01:12:20]} {[%emt
00:00:58]} 36. Kd3 {[%clk 00:04:43]} {[%emt 00:00:48]} f5 {[%clk 01:12:06]}
{[%emt 00:00:44]} 37. Ra5 {[%clk 00:04:16]} {[%emt 00:00:57]} Rb6 {[%clk
01:11:51]} {[%emt 00:00:45]} 38. Kc3 {[%clk 00:03:35]} {[%emt 00:01:11]} Rc6+
{[%clk 01:11:03]} {[%emt 00:01:19]} 39. Kd3 {[%clk 00:03:40]} {[%emt 00:00:25]}
Ke6 {[%clk 01:11:25]} {[%emt 00:00:09]} 40. Ke3 {[%clk 00:02:46]} {[%emt
00:01:22]} Kf6 {[%clk 01:11:18]} {[%emt 00:00:38]} 41. Kd3 {[%clk 00:02:33]}
{[%emt 00:00:42]} g6 {[%clk 01:11:26]} {[%emt 00:00:23]} 42. h4 {[%clk
00:01:47]} {[%emt 00:01:16]} g5 {[%clk 01:11:24]} {[%emt 00:00:31]} 43. hxg5+
{[%clk 00:00:49]} {[%emt 00:01:28]} hxg5 {[%clk 01:11:37]} {[%emt 00:00:18]} 44.
Ke3 {[%clk 00:00:50]} {[%emt 00:00:29]} Rd6 {[%clk 01:11:57]} {[%emt 00:00:11]}
45. Ra4 {[%clk 00:00:46]} {[%emt 00:00:34]} f4+ {[%clk 01:11:02]} {[%emt
00:01:25]} 46. Ke4 {[%clk 00:00:36]} {[%emt 00:00:40]} Rd4+ {[%clk 01:10:59]}
{[%emt 00:00:33]} 47. Rxd4 {[%clk 00:00:57]} {[%emt 00:00:09]} exd4 {[%clk
01:11:26]} {[%emt 00:00:03]} 48. Kxd4 {[%clk 00:01:13]} {[%emt 00:00:14]} Kf5
{[%clk 01:11:54]} {[%emt 00:00:03]} 49. Kc4 {[%clk 00:01:20]} {[%emt 00:00:22]}
g4 {[%clk 01:12:13]} {[%emt 00:00:11]} 50. fxg4+ {[%clk 00:00:31]} {[%emt
00:01:19]} Kxg4 {[%clk 01:12:37]} {[%emt 00:00:06]} 0-1

[Event "Mistrovství Čech mládeže 2023 - HD14"]
[Site "Harrachov, Czech Republic"]
[Date "2023.10.21"]
[Round "1.9"]
[White "Křivka, Matěj"]
[Black "Stibor, Ondřej"]
[Result "1-0"]
[TimeControl "90m + 30s"]
[WhiteElo "1665"]
[BlackElo "1170"]

1. e4 {[%clk 01:30:59]} e5 {[%clk 01:30:54]} {[%emt 00:00:07]} 2. Nf3 {[%clk
01:31:24]} {[%emt 00:00:04]} Nc6 {[%clk 01:31:17]} {[%emt 00:00:08]} 3. d4
{[%clk 01:31:49]} {[%emt 00:00:04]} exd4 {[%clk 01:31:20]} {[%emt 00:00:27]} 4.
Bc4 {[%clk 01:32:03]} {[%emt 00:00:16]} Bc5 {[%clk 01:31:09]} {[%emt 00:00:41]}
5. c3 {[%clk 01:31:45]} {[%emt 00:00:48]} dxc3 {[%clk 01:30:59]} {[%emt
00:00:40]} 6. Bxf7+ {[%clk 01:31:01]} {[%emt 00:01:15]} Kxf7 {[%clk 01:28:57]}
{[%emt 00:02:01]} 7. Qd5+ {[%clk 01:31:19]} {[%emt 00:00:10]} Ke8 {[%clk
01:28:33]} {[%emt 00:01:25]} 8. Qh5+ {[%clk 01:28:51]} {[%emt 00:02:56]} Kf8
{[%clk 01:25:53]} {[%emt 00:03:12]} 9. Qxc5+ {[%clk 01:28:47]} {[%emt
00:00:35]} d6 {[%clk 01:25:02]} {[%emt 00:01:21]} 10. Qxc3 {[%clk 01:26:44]}
{[%emt 00:02:33]} Bg4 {[%clk 01:21:06]} {[%emt 00:04:27]} 11. Bg5 {[%clk
01:15:11]} {[%emt 00:12:02]} Qe8 {[%clk 01:15:08]} {[%emt 00:06:28]} 12. Nbd2
{[%clk 01:09:27]} {[%emt 00:06:14]} Qg6 {[%clk 01:11:37]} {[%emt 00:04:00]} 13.
h3 {[%clk 00:48:26]} {[%emt 00:21:32]} Bd7 {[%clk 01:09:22]} {[%emt 00:02:45]}
14. O-O-O {[%clk 00:46:02]} {[%emt 00:02:54]} Nge7 {[%clk 01:02:20]} {[%emt
00:07:31]} 15. Rhe1 {[%clk 00:45:26]} {[%emt 00:01:06]} Re8 {[%clk 00:58:16]}
{[%emt 00:04:34]} 16. Re3 {[%clk 00:42:41]} {[%emt 00:03:15]} Qf7 {[%clk
00:52:48]} {[%emt 00:05:57]} 17. Nb3 {[%clk 00:39:32]} {[%emt 00:03:40]} Ng6
{[%clk 00:49:52]} {[%emt 00:03:26]} 18. Nfd4 {[%clk 00:35:56]} {[%emt
00:04:06]} Nge5 {[%clk 00:38:53]} {[%emt 00:11:29]} 19. Bh4 {[%clk 00:31:58]}
{[%emt 00:04:28]} Qh5 {[%clk 00:33:36]} {[%emt 00:05:47]} 20. Bg3 {[%clk
00:31:12]} {[%emt 00:01:16]} Ke7 {[%clk 00:31:54]} {[%emt 00:02:11]} 21. f4
{[%clk 00:29:26]} {[%emt 00:02:16]} Nf7 {[%clk 00:30:29]} {[%emt 00:01:55]} 22.
Nxc6+ {[%clk 00:25:28]} {[%emt 00:04:29]} Bxc6 {[%clk 00:29:55]} {[%emt
00:01:04]} 23. e5 {[%clk 00:25:31]} {[%emt 00:00:27]} dxe5 {[%clk 00:28:28]}
{[%emt 00:01:57]} 24. Qc5+ {[%clk 00:23:06]} {[%emt 00:02:51]} Kf6 {[%clk
00:25:42]} {[%emt 00:03:18]} 25. fxe5+ {[%clk 00:22:37]} {[%emt 00:00:59]} Nxe5
{[%clk 00:24:42]} {[%emt 00:01:31]} 26. Rf1+ {[%clk 00:22:33]} {[%emt
00:00:32]} Kg6 {[%clk 00:22:09]} {[%emt 00:03:05]} 27. Bxe5 {[%clk 00:19:51]}
{[%emt 00:03:12]} Qg5 {[%clk 00:21:22]} {[%emt 00:01:17]} 28. Qc2+ {[%clk
00:19:47]} {[%emt 00:00:31]} 1-0

[Event "Mistrovství Čech mládeže 2023 - HD14"]
[Site "Harrachov, Czech Republic"]
[Date "2023.10.21"]
[Round "1.10"]
[White "Mezera, Antonín"]
[Black "Chernyy, Andrey"]
[Result "0-1"]
[TimeControl "90m + 30s"]
[WhiteElo "1166"]
[BlackElo "1655"]

1. e4 {[%clk 01:30:55]} {[%emt 00:00:05]} e5 {[%clk 01:30:56]} {[%emt
00:00:04]} 2. Nf3 {[%clk 01:31:19]} {[%emt 00:00:06]} Nc6 {[%clk 01:31:21]}
{[%emt 00:00:05]} 3. Bc4 {[%clk 01:31:37]} {[%emt 00:00:12]} Nf6 {[%clk
01:31:43]} {[%emt 00:00:08]} 4. d3 {[%clk 01:32:00]} {[%emt 00:00:06]} Be7
{[%clk 01:31:56]} {[%emt 00:00:18]} 5. O-O {[%clk 01:31:46]} {[%emt 00:00:43]}
O-O {[%clk 01:32:20]} {[%emt 00:00:07]} 6. Nc3 {[%clk 01:31:40]} {[%emt
00:00:36]} d6 {[%clk 01:32:38]} {[%emt 00:00:12]} 7. h3 {[%clk 01:31:54]}
{[%emt 00:00:15]} h6 {[%clk 01:32:52]} {[%emt 00:00:17]} 8. Be3 {[%clk
01:30:47]} {[%emt 00:01:37]} Nh7 {[%clk 01:30:19]} {[%emt 00:03:04]} 9. Qe2
{[%clk 01:19:58]} {[%emt 00:11:20]} Kh8 {[%clk 01:28:17]} {[%emt 00:02:31]} 10.
Nh2 {[%clk 01:10:42]} {[%emt 00:09:46]} f5 {[%clk 01:28:13]} {[%emt 00:00:34]}
11. exf5 {[%clk 01:06:01]} {[%emt 00:05:11]} Bxf5 {[%clk 01:28:25]} {[%emt
00:00:17]} 12. Rad1 {[%clk 00:51:18]} {[%emt 00:15:14]} Bg5 {[%clk 01:27:22]}
{[%emt 00:01:33]} 13. a3 {[%clk 00:48:31]} {[%emt 00:03:18]} Qd7 {[%clk
01:24:09]} {[%emt 00:03:43]} 14. Bd5 {[%clk 00:47:04]} {[%emt 00:01:57]} Rae8
{[%clk 01:22:47]} {[%emt 00:01:52]} 15. Be4 {[%clk 00:45:36]} {[%emt 00:01:57]}
Nd4 {[%clk 01:17:58]} {[%emt 00:05:19]} 16. Qd2 {[%clk 00:45:06]} {[%emt
00:01:00]} c6 {[%clk 01:16:34]} {[%emt 00:01:53]} 17. Ne2 {[%clk 00:39:40]}
{[%emt 00:05:58]} d5 {[%clk 01:11:01]} {[%emt 00:06:03]} 18. Bxf5 {[%clk
00:35:03]} {[%emt 00:05:07]} Nxf5 {[%clk 01:10:30]} {[%emt 00:01:00]} 19. Bxg5
{[%clk 00:32:51]} {[%emt 00:02:42]} Nxg5 {[%clk 01:09:57]} {[%emt 00:01:02]} 20.
Ng4 {[%clk 00:31:06]} {[%emt 00:02:16]} Nh4 {[%clk 01:08:55]} {[%emt 00:01:31]}
21. f3 {[%clk 00:30:35]} {[%emt 00:01:03]} Rxf3 {[%clk 01:03:58]} {[%emt
00:05:26]} 22. g3 {[%clk 00:29:38]} {[%emt 00:01:26]} Rxf1+ {[%clk 01:03:38]}
{[%emt 00:00:50]} 23. Rxf1 {[%clk 00:29:53]} {[%emt 00:00:15]} Nhf3+ {[%clk
01:04:02]} {[%emt 00:00:05]} 0-1

[Event "Mistrovství Čech mládeže 2023 - HD14"]
[Site "Harrachov, Czech Republic"]
[Date "2023.10.21"]
[Round "1.11"]
[White "Švadlenka, Michal"]
[Black "Katasonova, Olga"]
[Result "1-0"]
[TimeControl "90m + 30s"]
[WhiteElo "1651"]
[BlackElo "1105"]

1. e4 {[%clk 01:30:57]} {[%emt 00:00:03]} e5 {[%clk 01:30:59]} {[%emt
00:00:02]} 2. Nf3 {[%clk 01:31:17]} {[%emt 00:00:09]} Nf6 {[%clk 01:31:23]}
{[%emt 00:00:05]} 3. Nxe5 {[%clk 01:31:37]} {[%emt 00:00:11]} d6 {[%clk
01:31:48]} {[%emt 00:00:06]} 4. Nf3 {[%clk 01:31:42]} {[%emt 00:00:25]} Nxe4
{[%clk 01:32:13]} {[%emt 00:00:05]} 5. d4 {[%clk 01:31:07]} {[%emt 00:01:05]}
d5 {[%clk 01:32:36]} {[%emt 00:00:07]} 6. Bd3 {[%clk 01:31:08]} {[%emt
00:00:29]} Bf5 {[%clk 01:32:58]} {[%emt 00:00:08]} 7. O-O {[%clk 01:30:46]}
{[%emt 00:00:53]} Be7 {[%clk 01:33:20]} {[%emt 00:00:08]} 8. Bf4 {[%clk
01:30:20]} {[%emt 00:00:56]} O-O {[%clk 01:32:24]} {[%emt 00:01:25]} 9. Nbd2
{[%clk 01:28:07]} {[%emt 00:02:43]} Bd6 {[%clk 01:31:16]} {[%emt 00:01:38]} 10.
Bxd6 {[%clk 01:26:14]} {[%emt 00:02:23]} Nxd6 {[%clk 01:29:52]} {[%emt
00:01:54]} 11. Bxf5 {[%clk 01:26:14]} {[%emt 00:00:30]} Nxf5 {[%clk 01:30:11]}
{[%emt 00:00:10]} 12. Re1 {[%clk 01:25:45]} {[%emt 00:00:59]} Nc6 {[%clk
01:27:03]} {[%emt 00:03:38]} 13. c3 {[%clk 01:25:32]} {[%emt 00:00:44]} Qf6
{[%clk 01:23:01]} {[%emt 00:04:31]} 14. Ne5 {[%clk 01:24:14]} {[%emt 00:01:49]}
Rfe8 {[%clk 01:22:14]} {[%emt 00:01:17]} 15. Ndf3 {[%clk 01:23:03]} {[%emt
00:01:40]} Nxe5 {[%clk 01:16:51]} {[%emt 00:05:52]} 16. Rxe5 {[%clk 01:21:22]}
{[%emt 00:02:11]} Rxe5 {[%clk 01:13:49]} {[%emt 00:03:32]} 17. Nxe5 {[%clk
01:20:20]} {[%emt 00:01:32]} c5 {[%clk 01:12:20]} {[%emt 00:01:58]} 18. Nd7
{[%clk 01:19:47]} {[%emt 00:01:04]} Qd6 {[%clk 01:11:51]} {[%emt 00:00:59]} 19.
Nxc5 {[%clk 01:20:01]} {[%emt 00:00:16]} b6 {[%clk 01:10:55]} {[%emt 00:01:25]}
20. Nd3 {[%clk 01:20:00]} {[%emt 00:00:31]} Qg6 {[%clk 01:08:30]} {[%emt
00:02:55]} 21. Ne5 {[%clk 01:10:33]} {[%emt 00:09:58]} Qf6 {[%clk 01:06:07]}
{[%emt 00:02:52]} 22. Qf3 {[%clk 01:09:19]} {[%emt 00:01:44]} Rd8 {[%clk
01:05:38]} {[%emt 00:00:59]} 23. Re1 {[%clk 01:09:00]} {[%emt 00:00:48]} Qe6
{[%clk 01:00:51]} {[%emt 00:05:17]} 24. Nd3 {[%clk 01:08:07]} {[%emt 00:01:24]}
Qd7 {[%clk 00:59:17]} {[%emt 00:02:04]} 25. Re5 {[%clk 01:07:13]} {[%emt
00:01:24]} g6 {[%clk 00:54:42]} {[%emt 00:05:05]} 26. Nb4 {[%clk 01:02:28]}
{[%emt 00:05:15]} Ne7 {[%clk 00:53:23]} {[%emt 00:01:47]} 27. Qe2 {[%clk
01:00:28]} {[%emt 00:02:31]} Kf8 {[%clk 00:51:39]} {[%emt 00:02:14]} 28. Rxe7
{[%clk 00:58:49]} {[%emt 00:02:08]} Qxe7 {[%clk 00:50:56]} {[%emt 00:01:13]} 29.
Qxe7+ {[%clk 00:59:14]} {[%emt 00:00:06]} Kxe7 {[%clk 00:51:21]} {[%emt
00:00:05]} 30. Nc6+ {[%clk 00:59:40]} {[%emt 00:00:04]} Kd7 {[%clk 00:51:41]}
{[%emt 00:00:10]} 31. Nxd8 {[%clk 01:00:03]} {[%emt 00:00:07]} Kxd8 {[%clk
00:52:06]} {[%emt 00:00:05]} 32. Kf1 {[%clk 01:00:07]} {[%emt 00:00:25]} Ke7
{[%clk 00:52:30]} {[%emt 00:00:05]} 33. Ke2 {[%clk 01:00:26]} {[%emt 00:00:12]}
Ke6 {[%clk 00:52:53]} {[%emt 00:00:06]} 34. Kd3 {[%clk 01:00:41]} {[%emt
00:00:15]} b5 {[%clk 00:52:16]} {[%emt 00:01:07]} 35. b3 {[%clk 01:00:58]}
{[%emt 00:00:14]} f5 {[%clk 00:52:19]} {[%emt 00:00:26]} 36. c4 {[%clk
01:00:49]} {[%emt 00:00:39]} a6 {[%clk 00:50:08]} {[%emt 00:02:41]} 37. a4
{[%clk 00:59:51]} {[%emt 00:01:29]} bxc4+ {[%clk 00:48:50]} {[%emt 00:01:48]}
38. bxc4 {[%clk 01:00:18]} {[%emt 00:00:03]} dxc4+ {[%clk 00:49:09]} {[%emt
00:00:11]} 39. Kxc4 {[%clk 01:00:43]} {[%emt 00:00:05]} Kd6 {[%clk 00:49:35]}
{[%emt 00:00:05]} 40. f4 {[%clk 01:00:48]} {[%emt 00:00:25]} Kc6 {[%clk
00:48:58]} {[%emt 00:01:07]} 41. d5+ {[%clk 01:01:02]} {[%emt 00:00:17]} Kd6
{[%clk 00:48:44]} {[%emt 00:00:43]} 42. h4 {[%clk 01:01:17]} {[%emt 00:00:14]}
a5 {[%clk 00:48:43]} {[%emt 00:00:32]} 43. g3 {[%clk 01:01:20]} {[%emt
00:00:28]} h6 {[%clk 00:48:35]} {[%emt 00:00:37]} 44. Kd4 {[%clk 01:01:28]}
{[%emt 00:00:22]} Kc7 {[%clk 00:48:12]} {[%emt 00:00:54]} 45. Kc5 {[%clk
01:01:39]} {[%emt 00:00:19]} h5 {[%clk 00:48:00]} {[%emt 00:00:41]} 46. Kb5
{[%clk 01:01:56]} {[%emt 00:00:13]} Kd6 {[%clk 00:48:09]} {[%emt 00:00:21]} 47.
Kxa5 {[%clk 01:02:21]} {[%emt 00:00:06]} Kxd5 {[%clk 00:48:31]} {[%emt
00:00:07]} 48. Kb6 {[%clk 01:02:41]} {[%emt 00:00:11]} Kd6 {[%clk 00:48:46]}
{[%emt 00:00:15]} 49. a5 {[%clk 01:03:02]} {[%emt 00:00:09]} Kd7 {[%clk
00:48:28]} {[%emt 00:00:48]} 50. a6 {[%emt 00:00:15]} 1-0